Cogmind - Beta 15 @@@ ROGUE MODE // 2025.07.16 @ 21:58:06 Player: beans Result: Destroyed by Y-45 Defender with Beam Rifle Performance ------------- Evolutions (2) 1000 Regions Visited (8) 1600 Robots Destroyed (73) 365 Value Destroyed (1679) 1679 Prototype IDs (24) 480 Alien Tech Used (0) 0 Bonus (514) 514 TOTAL SCORE: 5638 Bonus ------- High Alert Combat Kills 22 Follower Combat Kills 192 Aligned with FarCom 300 Cogmind --------- Core Integrity 0/550 Matter 458/500 Energy 99/100 System Corruption 0% Temperature Cool (9) Movement Core (150) Ox2 Location -8/Storage Parts ------- > --- POWER (2) -------- (None) > --- PROPULSION (2) --- (None) > --- UTILITY (3) ------ High-capacity Matter Pod Improved Signal Interpreter Melee Analysis Suite > --- WEAPON (4) ------- Minigun > --- INVENTORY (5) ---- High-capacity Matter Pod (200) Peak State ------------ > --- POWER ------------ Light Angular Momentum Engine > --- PROPULSION ------- Carbon-fiber Leg > --- UTILITY ---------- Cooling System Improved Signal Interpreter Melee Analysis Suite > --- WEAPON ----------- Ion Cannon Rocket Launcher Longsword +1 > --- INVENTORY -------- High-capacity Matter Pod High-capacity Matter Pod [Rating: 29] Favorites ----------- Power Ion Engine Engine Ion Engine Power Core Light Nuclear Core Propulsion Light Treads Treads Light Treads Leg Aluminum Leg Utility Signal Interpreter Device Cooling System Storage High-capacity Matter Pod Processor Signal Interpreter Hackware Hacking Suite Weapon Light Cannon Energy Gun Particle Gun Energy Cannon Ion Cannon Ballistic Gun Assault Rifle Ballistic Cannon Light Cannon Launcher Rocket Launcher Slashing Weapon Longsword +1 Build | -11 -10 -10 -9 -9 -9 -8 -8 -8 ------- Run | Yrd Mat Min Mat Min Exi Min Mat Sto Slots Evolved 4 | . . . 2 . . . 2 . Power 1 | . . . . . . . 1 . Propulsion . | . . . . . . . . . Utility 1 | . . . . . . . 1 . Weapon 2 | . . . 2 . . . . . Parts Attached 32 | 5 4 . 3 4 1 2 3 10 Power 6 | 1 . . . 1 . 1 1 2 Engine 5 | 1 . . . . . 1 1 2 Core 1 | . . . . 1 . . . . Reactor . | . . . . . . . . . Propulsion 7 | 2 . . . 2 . . . 3 Treads 2 | 2 . . . . . . . . Leg 5 | . . . . 2 . . . 3 Wheel . | . . . . . . . . . Hover . | . . . . . . . . . Flight . | . . . . . . . . . Utility 8 | . 2 . 1 1 . 1 1 2 Device 1 | . . . . . . . 1 . Storage 2 | . 1 . . . . . . 1 Processor 4 | . 1 . 1 . . 1 . 1 Hackware 1 | . . . . 1 . . . . Protection . | . . . . . . . . . Artifact . | . . . . . . . . . Weapon 11 | 2 2 . 2 . 1 . 1 3 Energy Gun 1 | . . . . . . . . 1 Energy Cannon 1 | . . . . . . . 1 . Ballistic Gun 3 | 2 . . . . . . . 1 Ballistic Cannon 4 | . 2 . 2 . . . . . Launcher 1 | . . . . . . . . 1 Special Weapon . | . . . . . . . . . Impact Weapon . | . . . . . . . . . Slashing Weapon 1 | . . . . . 1 . . . Piercing Weapon . | . . . . . . . . . Special Melee Weapon . | . . . . . . . . . Unidentified Prototypes 1 | . . . . . . . 1 . Parts Lost 22 | . . . 4 7 . 2 . 9 Power 3 | . . . 1 1 . . . 1 Propulsion 7 | . . . 1 2 . 1 . 3 Utility 3 | . . . . 1 . 1 . 1 Weapon 9 | . . . 2 3 . . . 4 Highest Loss Streak 6 | . . . 3 5 . 2 . 6 To Critical Strikes 1 | . . . . 1 . . . . Average Backups 3 | . 2 5 4 3 4 4 3 2 Power . | . . . . . . . . . Propulsion . | . . . . . . . . . Utility 2 | . . 2 3 3 3 3 2 1 Weapon 1 | . 1 3 1 . 1 1 1 . Tool/Special . | . . . . . . . . . Unused Backups 1 | . . . . . . . 1 . Power . | . . . . . . . . . Propulsion . | . . . . . . . . . Utility 1 | . . . . . . . 1 . Weapon . | . . . . . . . . . Tool/Special . | . . . . . . . . . Average Slot Usage (%) 58 | . 86 100 88 37 41 41 42 51 Engine 5 | . 14 14 8 . . 4 9 6 Treads 8 | . 28 28 19 . . . . . Leg 5 | . . . . 11 11 5 . 3 Storage 3 | . 5 14 10 . . . . 2 Processor 12 | . 10 14 11 12 11 16 18 18 Hackware 4 | . . . . 8 11 5 . . Ballistic Gun 2 | . 13 . . 1 . . . . Ballistic Cannon 10 | . 14 28 37 1 . . . . Slashing Weapon 2 | . . . . . 8 11 9 6 Peak Build Rating 29 | 5 7 7 9 9 13 17 22 29 Average Rating 9 | 3 6 7 7 5 10 14 18 19 On Entrance 9 | . 5 7 7 5 5 13 17 22 Naked Turns . | . . . . . . . . . Heaviest Build 22 | 9 15 15 21 10 3 12 20 22 Greatest Support 40 | 40 40 40 40 20 10 10 3 20 Greatest Overweight (x) 6 | . . . . 3 . 3 6 6 Average Overweight (x) . | . . . . . . 1 3 2 Largest Inventory Capacity 5 | 5 5 5 5 5 5 5 5 5 Average Capacity 5 | 5 5 5 5 5 5 5 5 5 Most Carried 5 | 2 5 5 5 5 5 5 5 4 Average Carried 3 | . 2 5 4 3 4 4 3 2 Final Capacity 5 | 5 5 5 5 5 5 5 5 5 Final Carried 5 | . 5 5 5 4 4 4 3 1 Class Distribution -------------------- 86% | Mutant 13% | Gunner Dominant Class ---------------- Mutant | -10/Materials Mutant | -10/Mines Gunner | -9/Materials Mutant | -9/Mines Mutant | -9/Exiles Mutant | -8/Mines Mutant | -8/Materials Mutant | -8/Storage Resources | -11 -10 -10 -9 -9 -9 -8 -8 -8 ----------- Run | Yrd Mat Min Mat Min Exi Min Mat Sto Matter Collected 2288 | 218 411 106 1068 240 . 52 20 173 Remotely . | . . . . . . . . . Salvage Created 2244 | . 278 92 902 105 . 254 79 534 Parts 141 | . 16 4 60 9 . 15 1 36 Haulers Intercepted 6 | . 1 . 5 . . . . . Recyclers Shooed 5 | . . . 4 . . . 1 . Parts Field Recycled . | . . . . . . . . . Retrieved Matter . | . . . . . . . . . Parts Self-Destructed . | . . . . . . . . . Prevented . | . . . . . . . . . Kills | -11 -10 -10 -9 -9 -9 -8 -8 -8 ------- Run | Yrd Mat Min Mat Min Exi Min Mat Sto Combat Hostiles Destroyed 42 | . 2 2 18 2 . 4 . 14 Melee 8 | . . . . . . 4 . 4 Guns 9 | . 2 . . 1 . . . 6 Cannons 21 | . . 2 18 1 . . . . AOE 4 | . . . . . . . . 4 Classes Destroyed 12 | . 4 . 6 . . . . 2 Worker 10 | . . . 6 . . 2 . 2 Builder 2 | . . . 2 . . . . . Hauler 6 | . 1 . 5 . . . . . Recycler 8 | . 2 . 4 1 . . 1 . Mechanic 1 | . . . . . . . . 1 Operator 1 | . 1 . . . . . . . Watcher 3 | . . . 3 . . . . . Swarmer 10 | . . . 7 . . . . 3 Grunt 25 | . 2 2 8 2 . 4 . 7 Brawler 2 | . . . . . . . . 2 Duelist 3 | . . . 1 . . . . 2 Sentry 2 | . . . 2 . . . . . Best Kill Streak 30 | . 3 2 30 2 . 5 1 8 Combat Bots Only 10 | . 2 2 10 2 . 4 . 7 Max Kills in Single Turn 2 | . 1 1 2 1 . 1 1 1 Gunslinging . | . . . . . . . . . Exploded 1 | . . . . . . . . 1 Melee 1 | . . . . . . 1 . 1 Uniques/NPCs Destroyed . | . . . . . . . . . Combat | -11 -10 -10 -9 -9 -9 -8 -8 -8 -------- Run | Yrd Mat Min Mat Min Exi Min Mat Sto Hostile Shots Fired 304 | . 8 4 105 36 . 26 . 125 Missed 80 | . 4 1 22 7 . 8 . 38 Hits 224 | . 4 3 83 29 . 18 . 87 Melee 11 | . . . . 5 . 1 . 5 Projectile 213 | . 4 3 83 24 . 17 . 82 Critical Strikes 10 | . . . 2 2 . 1 . 5 Damage Taken 2949 | . 59 41 864 379 . 332 . 1274 Core 984 | . 28 . 97 62 . 234 . 563 Absorbed by Shields . | . . . . . . . . . Core Remaining (%) 63 | 100 . 88 . . . 1 . . Volleys Fired 139 | . 21 3 64 19 . . 1 31 Largest 4 | . 2 2 4 2 . . 1 1 Hottest 120 | . 60 60 120 60 . . 60 65 Shots Fired 333 | . 42 6 227 26 . . 1 31 Gun 59 | . 20 . . 17 . . . 22 Cannon 266 | . 22 6 227 9 . . 1 1 Launcher 8 | . . . . . . . . 8 Special . | . . . . . . . . . Kinetic 309 | . 42 6 227 26 . . . 8 Thermal 16 | . . . . . . . 1 15 Explosive 8 | . . . . . . . . 8 Electromagnetic . | . . . . . . . . . Robot Hit Streak 10 | . 8 2 8 10 . . . 4 Robot Miss Streak 5 | . 2 1 5 1 . . 1 2 Penetration Max . | . . . . . . . . . Secondary Targets . | . . . . . . . . . Shots Hit Robots 175 | . 22 3 94 20 . 11 1 24 Core Hits 97 | . 9 3 44 8 . 4 1 28 Critical Kills . | . . . . . . . . . Critical Parts Destroyed . | . . . . . . . . . Critical Strikes 11 | . 1 1 6 . . 2 . 1 Blast 8 | . 1 1 6 . . . . . Sever 3 | . . . . . . 2 . 1 Melee Attacks 18 | . . . . . . 11 1 6 Impact . | . . . . . . . . . Slashing 18 | . . . . . . 11 1 6 Piercing . | . . . . . . . . . Sneak Attacks 5 | . . . . . . 3 1 1 Combat Hostiles . | . . . . . . . . . Follow-up Attacks . | . . . . . . . . . Damage Inflicted 4389 | . 328 49 1939 273 . 630 76 1094 Guns 535 | . 126 . . 151 . . . 258 Cannons 2336 | . 202 49 1939 122 . . . 24 Explosions 556 | . . . . . . . . 556 Melee 961 | . . . . . . 630 76 255 Ramming 1 | . . . . . . . . 1 Kinetic 2689 | . 328 49 1939 273 . . . 100 Thermal 182 | . . . . . . . . 182 Explosive 556 | . . . . . . . . 556 Electromagnetic . | . . . . . . . . . Impact . | . . . . . . . . . Slashing 961 | . . . . . . 630 76 255 Piercing . | . . . . . . . . . Highest Corruption 9 | . . . . 9 9 9 . . Average Corruption 8 | . . . . 8 9 9 . . Corruption Purged . | . . . . . . . . . Corruption Blocked . | . . . . . . . . . Effects 50 | . . . . 31 17 2 . . Message Errors 19 | . . . . 11 7 1 . . Matter Fused 12 | . . . . 8 4 . . . Heat Flow Errors 7 | . . . . 4 3 . . . Energy Discharges 5 | . . . . 3 2 . . . Data Loss (minor) 5 | . . . . 3 1 1 . . Data Loss (major) 1 | . . . . 1 . . . . Alerts 1 | . . . . 1 . . . . Overload Shots . | . . . . . . . . . Overflow Damage 163 | . . . 14 . . 149 . . Projectiles 14 | . . . 14 . . . . . Explosions . | . . . . . . . . . Melee 149 | . . . . . . 149 . . Knockbacks 22 | . 3 1 17 1 . . . . Impact . | . . . . . . . . . Kinetic 21 | . 3 1 16 1 . . . . Secondary 1 | . . . 1 . . . . . Self-Inflicted Damage 61 | . . . . . . . . 61 Shots 2 | . . . . . . . . 2 Rammed 1 | . . . . . . . . 1 Targets Rammed 2 | . . . . 1 . . . 1 Kicked 1 | . . . . 1 . . . . Crushed . | . . . . . . . . . Highest Temperature 412 | . . 9 412 248 178 9 . 145 Average Temperature 121 | . . 9 136 95 84 9 . 71 Received Heat Transfer 1161 | . 36 24 231 150 . 180 . 540 Effects 8 | . . . 8 . . . . . Shutdowns 2 | . . . 2 . . . . . Interference 3 | . . . 3 . . . . . Matter Decay 2 | . . . 2 . . . . . Short Circuit 1 | . . . 1 . . . . . Siege Activations . | . . . . . . . . . Martial Activations . | . . . . . . . . . Shielding Activations . | . . . . . . . . . Robots Disrupted . | . . . . . . . . . Combat Hostiles . | . . . . . . . . . Robots Corrupted . | . . . . . . . . . Combat Hostiles . | . . . . . . . . . Parts Fried . | . . . . . . . . . Impact Corruptions . | . . . . . . . . . Robots Melted . | . . . . . . . . . Combat Hostiles . | . . . . . . . . . Parts Melted 1 | . . . . . . . . 1 Heat Transferred 407 | . . . . . . . . 407 Parts Sabotaged . | . . . . . . . . . Parts Stolen . | . . . . . . . . . Parts Stripped . | . . . . . . . . . Power Chain Reactions . | . . . . . . . . . Alert | -11 -10 -10 -9 -9 -9 -8 -8 -8 ------- Run | Yrd Mat Min Mat Min Exi Min Mat Sto Maximum Alert Level 2 | . . . 2 . . . . 1 Low Security (%) 84 | 100 100 100 37 100 . 100 100 81 Level 1 13 | . . . 52 . . . . 18 Level 2 2 | . . . 10 . . . . . Level 3 . | . . . . . . . . . Level 4 . | . . . . . . . . . Level 5 . | . . . . . . . . . High Security . | . . . . . . . . . Max Security . | . . . . . . . . . Peak Influence 413 | . 55 50 413 164 . 116 37 240 Initial 144 | . . . 3 144 . . 37 . Average 76 | . 8 23 243 28 . 55 10 83 Influence Increases 1550 | . 132 50 622 113 . 160 5 468 Destroy 0b10 Robot/C 960 | . 40 40 360 80 . 120 . 320 Destroy 0b10 Robot/NC 155 | . 20 . 100 5 . 10 5 15 Destroy Leader 208 | . 12 10 86 20 . 20 . 60 Allied During Kill 26 | . . . . 8 . 10 . 8 Disable Machine 75 | . . . 75 . . . . . Destroy Structure 51 | . . . 1 . . . . 50 Lose Combat Pursuer 75 | . 60 . . . . . . 15 Influence Decreases 1324 | . 132 40 262 483 . 64 101 242 Entered New Map 292 | . . . 7 226 . . 59 . Time Decay 765 | . 132 40 215 187 . 40 42 109 Lost Part 204 | . . . 40 70 . 4 . 90 Lost Ally 63 | . . . . . . 20 . 43 Squads Dispatched 8 | . 2 . . . . . . 6 Investigation 1 | . . . . . . . . 1 Extermination . | . . . . . . . . . Reinforcement 3 | . 2 . . . . . . 1 Assault 2 | . . . . . . . . 2 Garrison 2 | . . . . . . . . 2 Intercept . | . . . . . . . . . Searches Triggered . | . . . . . . . . . Construction Impeded 1 | . . . . . . . . 1 Haulers Reinforced . | . . . . . . . . . Active Scanning Responses . | . . . . . . . . . Cargo Convoy Interrupts . | . . . . . . . . . Stealth | -11 -10 -10 -9 -9 -9 -8 -8 -8 --------- Run | Yrd Mat Min Mat Min Exi Min Mat Sto Distress Signals 8 | . 2 . 5 . . . . 1 Communications Jammed . | . . . . . . . . . Distress Signals . | . . . . . . . . . Times Spotted 72 | . 11 2 24 4 . 6 . 25 Peak Tracking Total 9 | . 5 2 8 2 . 6 . 9 Tactical Retreats 4 | . 3 . . . . . . 1 Traps | -11 -10 -10 -9 -9 -9 -8 -8 -8 ------- Run | Yrd Mat Min Mat Min Exi Min Mat Sto Traps Triggered . | . . . . . . . . . Indirectly . | . . . . . . . . . Trap Hack Attempts . | . . . . . . . . . Triggered . | . . . . . . . . . Disarmed . | . . . . . . . . . Reprogrammed . | . . . . . . . . . Reused . | . . . . . . . . . Traps Extracted . | . . . . . . . . . Installed . | . . . . . . . . . Triggered . | . . . . . . . . . Machines | -11 -10 -10 -9 -9 -9 -8 -8 -8 ---------- Run | Yrd Mat Min Mat Min Exi Min Mat Sto Machines Disabled 5 | . . . 5 . . . . . Max in Single Turn 1 | . . . 1 . . . . . Machines Repaired . | . . . . . . . . . Machines Dismantled . | . . . . . . . . . Machines Sabotaged . | . . . . . . . . . Overloaded Fab Kills . | . . . . . . . . . Hacking | -11 -10 -10 -9 -9 -9 -8 -8 -8 --------- Run | Yrd Mat Min Mat Min Exi Min Mat Sto Machines Accessed 4 | . . . . . 2 . . 2 Terminals 2 | . . . . . . . . 2 Fabricators . | . . . . . . . . . Repair Stations . | . . . . . . . . . Recycling Units . | . . . . . . . . . Scanalyzers . | . . . . . . . . . Garrison Access . | . . . . . . . . . Total Hacks 27 | . . . . . 24 . . 3 Successful 25 | . . . . . 24 . . 1 Failed 2 | . . . . . . . . 2 Catastrophic 2 | . . . . . . . . 2 Database Lockouts . | . . . . . . . . . Manual 1 | . . . . . 1 . . . Terminals 3 | . . . . . . . . 3 Fabricators . | . . . . . . . . . Repair Stations . | . . . . . . . . . Recycling Units . | . . . . . . . . . Scanalyzers . | . . . . . . . . . Garrison Access . | . . . . . . . . . Terminal Hacks 25 | . . . . . 24 . . 1 Record 24 | . . . . . 23 . . 1 Proto ID Catalog 1 | . . . . . 1 . . . Fabricator Hacks . | . . . . . . . . . Repair Station Hacks . | . . . . . . . . . Recycling Unit Hacks . | . . . . . . . . . Scanalyzer . | . . . . . . . . . Garrison Access Hacks . | . . . . . . . . . Unauthorized Hacks . | . . . . . . . . . Terminals . | . . . . . . . . . Fabricators . | . . . . . . . . . Repair Stations . | . . . . . . . . . Recycling Units . | . . . . . . . . . Scanalyzers . | . . . . . . . . . Garrison Access . | . . . . . . . . . Data Cores Recovered . | . . . . . . . . . Used . | . . . . . . . . . Hacking Detections 2 | . . . . . . . . 2 Full Trace Events 1 | . . . . . . . . 1 Feedback Events . | . . . . . . . . . Feedback Blocked . | . . . . . . . . . Robot Schematics Acquired . | . . . . . . . . . Robots Built . | . . . . . . . . . Authchips . | . . . . . . . . . Time . | . . . . . . . . . Total Robot Build Rating . | . . . . . . . . . Part Schematics Acquired . | . . . . . . . . . Parts Built . | . . . . . . . . . Authchips . | . . . . . . . . . Time . | . . . . . . . . . Total Part Build Rating . | . . . . . . . . . Parts Repaired . | . . . . . . . . . Time . | . . . . . . . . . Parts Recycled . | . . . . . . . . . Recycled Matter . | . . . . . . . . . Retrieved Matter . | . . . . . . . . . Retrieved Components . | . . . . . . . . . Parts Scanalyzed . | . . . . . . . . . Part Schematics Acquired . | . . . . . . . . . Parts Damaged . | . . . . . . . . . Bothacking | -11 -10 -10 -9 -9 -9 -8 -8 -8 ------------ Run | Yrd Mat Min Mat Min Exi Min Mat Sto Used RIF Installer . | . . . . . . . . . Robots Hacked . | . . . . . . . . . Non-combat . | . . . . . . . . . Combat . | . . . . . . . . . Robot Hacks Applied . | . . . . . . . . . Relay Couplers Released . | . . . . . . . . . Fabnet Peak Effective % . | . . . . . . . . . Robots Rewired . | . . . . . . . . . Allies Hacked . | . . . . . . . . . Hacks Repelled . | . . . . . . . . . Allies | -11 -10 -10 -9 -9 -9 -8 -8 -8 -------- Run | Yrd Mat Min Mat Min Exi Min Mat Sto Total Allies 6 | . . . . 4 . . . 2 Largest Group 4 | . . . . 4 2 2 1 3 Highest-Rated Group 78 | . . . . 71 32 32 16 78 Highest-Rated Ally 31 | . . . . 31 16 16 16 31 Total Orders . | . . . . . . . . . Ally Attacks 39 | . . . . 3 . 16 . 20 Total Damage 521 | . . . . 27 . 168 . 326 Kills 6 | . . . . 2 . 2 . 2 Allies Corrupted . | . . . . . . . . . Allies Melted . | . . . . . . . . . Intel | -11 -10 -10 -9 -9 -9 -8 -8 -8 ------- Run | Yrd Mat Min Mat Min Exi Min Mat Sto Active Infowar (turns) . | . . . . . . . . . Robot Analysis Total . | . . . . . . . . . Derelict Logs Recovered 1 | . . . . 1 . . . . Drone Launches . | . . . . . . . . . Drone Recoveries . | . . . . . . . . . Exploration | -11 -10 -10 -9 -9 -9 -8 -8 -8 ------------- Run | Yrd Mat Min Mat Min Exi Min Mat Sto Turns Passed 3785 | 74 557 107 664 1082 586 105 169 441 Spaces Moved 2005 | 46 301 62 257 580 484 55 69 151 Core 200 | 8 . . . 6 . 28 69 89 Treads 659 | 38 301 62 257 1 . . . . Legs 1146 | . . . . 573 484 27 . 62 Wheels . | . . . . . . . . . Hover . | . . . . . . . . . Flight . | . . . . . . . . . Fastest Speed 50 | 50 160 160 160 100 120 50 200 100 Average Speed 144 | 140 160 160 160 120 120 141 234 219 Slowest Speed 350 | 160 160 160 160 200 120 200 350 350 Overloaded Moves . | . . . . . . . . . Propulsion Burnouts . | . . . . . . . . . Robots Hopped . | . . . . . . . . . Potential Cave-ins . | . . . . . . . . . Cave-ins Triggered . | . . . . . . . . . Exploration Rate (%) 36 | 5 47 22 26 90 88 19 6 27 Regions Visited 8 Branch Regions 5 Pre-discovered Areas 1 | . . . . . 1 . . . Known Exits Taken 5 | . . . 1 1 1 1 1 . Unknown Exits Taken 3 | 1 1 1 . . . . . . Scrap Searched 2 | . . 1 . 1 . . . . Spaces Dug . | . . . . . . . . . Terrain Destroyed 75 | . . . . . . . . 75 Melee . | . . . . . . . . . Projectile . | . . . . . . . . . AOE 75 | . . . . . . . . 75 Terrain Rammed . | . . . . . . . . . Walls Destroyed . | . . . . . . . . . Machines Disabled . | . . . . . . . . . Actions | -11 -10 -10 -9 -9 -9 -8 -8 -8 --------- Run | Yrd Mat Min Mat Min Exi Min Mat Sto Total 2614 | 55 334 64 358 937 489 72 78 227 Wait 382 | . 1 . 31 330 4 3 . 13 Move 1997 | 45 300 61 256 579 483 54 68 151 Hop . | . . . . . . . . . Pick Up 33 | 5 7 . 3 3 1 2 3 9 Fast Attach 2 | . 1 . . 1 . . . . Attach 30 | 5 1 . 3 4 1 2 3 11 Detach . | . . . . . . . . . Swap 3 | . 2 . . . . . . 1 Drop 8 | . 1 . 1 . . . 2 4 Fire 139 | . 21 3 64 19 . . 1 31 Melee 18 | . . . . . . 11 1 6 Ram 1 | . . . . . . . . 1 Kick 1 | . . . . 1 . . . . Crush . | . . . . . . . . . Escape Stasis . | . . . . . . . . . Rewire . | . . . . . . . . . Trap . | . . . . . . . . . Miscellaneous . | . . . . . . . . . Route ------- -11/Scrapyard -10/Materials (discovered 3 exits: [*Mat x2] / [*Min]) -10/Mines -9/Materials -9/Mines (discovered 2 exits: *Mat / *Exi) -9/Exiles (discovered 2 exits: *Min x2) -8/Mines -8/Materials -8/Storage (discovered 1 exit: Rec) History --------- Turn | Location | Event 3 | -11/Scrapyard | Discovered new exit (range 15) 75 | -11/Scrapyard | Entered Materials 76 | -10/Materials | Met a group of wandering Federalists 138 | -10/Materials | Discovered new exit (range 16) 213 | -10/Materials | Discovered new exit (range 8) 300 | -10/Materials | Build established: Mutant 612 | -10/Materials | Discovered new exit (range 14) 632 | -10/Materials | Entered Mines 685 | -10/Mines | Discovered new exit (range 12) 739 | -10/Mines | Entered Materials 739 | -9/Materials | Evolved 2 slots: Weapon x2 1027 | -9/Materials | Build established: Gunner 1056 | -9/Materials | Destroyed 10 combat bots 1274 | -9/Materials | Discovered new exit (range 15) 1280 | -9/Materials | Lost 3 parts (1p1n1w) 1402 | -9/Materials | Identified exit to Mines 1403 | -9/Materials | Entered Mines 1434 | -9/Mines | Met a Derelict bent on vengeance 1554 | -9/Mines | Build established: Mutant 1593 | -9/Mines | Lost 5 parts (1p1n1u2w) 1607 | -9/Mines | Assisted by bots powering up and referring to "LRC-V3" 1732 | -9/Mines | Discovered new exit (range 15) 1734 | -9/Mines | Received a Rocket Launcher from a helpful Derelict 1793 | -9/Mines | Escorted by a lone wolf Derelict 2205 | -9/Mines | Identified exit to Materials 2479 | -9/Mines | Deemed a non-threat by the Exiles lab entrance 2479 | -9/Mines | Discovered new exit (range 5) 2483 | -9/Mines | Identified exit to Exiles 2485 | -9/Mines | Entered Exiles 2485 | -9/Exiles | Accompanied by 3 allies 2503 | -9/Exiles | Discovered new exit (range 15) 2518 | -9/Exiles | Met 8R-AWN 2537 | -9/Exiles | Met EX-HEX 2580 | -9/Exiles | Met EX-BIN 2593 | -9/Exiles | Aligned with FarCom system 2595 | -9/Exiles | Given EX-Vault access code 2626 | -9/Exiles | Opened EX-Vault 2634 | -9/Exiles | Found Longsword +1 2666 | -9/Exiles | Warned to stay clear of 0b10 Research branches 2702 | -9/Exiles | Met EX-DEC 2745 | -9/Exiles | Discovered new exit (range 10) 2801 | -9/Exiles | Learned location of Zion (-7) 2882 | -9/Exiles | Visited The Gauntlet 3066 | -9/Exiles | Identified exit to Mines 3071 | -9/Exiles | Left Exiles lab with Longsword +1 3071 | -9/Exiles | Entered Mines 3071 | -8/Mines | Accompanied by 2 allies 3115 | -8/Mines | Core integrity fell below 50% 3119 | -8/Mines | Core integrity fell below 20% 3166 | -8/Mines | Discovered exit to Materials (range 3) 3176 | -8/Mines | Entered Materials 3176 | -8/Materials | Accompanied by 1 ally 3176 | -8/Materials | Evolved 2 slots: Power x1, Utility x1 3292 | -8/Materials | Discovered new exit (range 10) 3314 | -8/Materials | Identified exit to Storage 3345 | -8/Materials | Entered Storage 3345 | -8/Storage | Accompanied by 1 ally 3346 | -8/Storage | Identified exit to Recycling 3495 | -8/Storage | Met a pair of Derelict thieves 3605 | -8/Storage | Lost 3 allies 3639 | -8/Storage | Garrison activated, responded to threat 3685 | -8/Storage | Core integrity fell below 50% 3701 | -8/Storage | Lost 6 parts (1p2n3w) 3721 | -8/Storage | Destroyed 7 combat bots 3752 | -8/Storage | Core integrity fell below 20% 3786 | -8/Storage | Destroyed by Y-45 Defender with Beam Rifle Last Messages --------------- U-05 Engineer builds a Wall. K-01 Serf collects debris. U-05 Engineer builds a Wall. K-01 Serf collects debris. Critical hit (Burn: +37). B-36 Bruiser emerges from the garrison. L-31 Rogue emerges from the garrison. Aluminum Leg destroyed. Particle Gun destroyed. K-01 Serf cleans the Garrison Access. Critical hit (Burn: +37). Slammed into K-01 Serf. Melee Analysis Suite broken. Destabilizing: Short circuit. Connecting with Door Terminal... ALERT: Suspicious activity at Terminal S011. Dispatching Investigation squad. Acquired Minigun. B-36 Bruiser destroyed. L-31 Rogue destroyed. Map ----- +----------------------------------------------------+ | ??????????????????????????????????????????? | | ??????????????????????????????????????????? | | ??????????????????????????????????????????? | | ??????????????????????????????????????????? | | ??????????????????????????????????????????? | | ??????????????????????????????????????????? | | ??????????????????????????????????????????? | | ??????????????????????????????????????????? | | ??????????????????????????????????????????? | | ??????????????????????????????????????????? | | ??????????????????????????????????????????? | | ??????????????????????????????????????????? | | ??????????????????????????????????????????? | | ??????????????????????????????????????????? | | ??????????????????????????????????????????? | | ?#####????????????????????????????????????? | | ?#"""#????????????????????????????????????? | | ?#"G"#??????????????##"""#????????????????? | | ##" "########+##????#T #????????????????? | | g########+#####?????????????? | | gYg % YY +????g??g?????? | | ########Y#####?????????????? | | +########### #????# /%g!!#??????????????? | | ?????????# #????# *! #??????????????? | | ?????????# #????# #??????????????? | | ""?????????# #????#! /%@r#???o??????????? | | ""?????????# #????# = #??????????????? | | ""?????????# #????#r #??????????????? | | ?????????# #????########??????????????? | | ???????????# #??????????????????????????? | | ???????????# #??????????????????????????? | | ???????????# #??????????????????????????? | | ??????????? ??????????????????????????? | | ??????????? ??????????????????????????? | | ??????????? ??????????????????????????? | | ??????????? ??????????????????????????? | | ??????????? ??????????????????????????? | | ??????????????????????????????????????????? | | ??????????????????????????????????????????? | | ??????????????????????????????????????????? | | ??????????????????????????????????????????? | | ??????????????????????????????????????????? | | ??????????????????????????????????????????? | | ??????????????????????????????????????????? | | ??????????????????????????????????????????? | | ??????????????????????????????????????????? | | ??????????????????????????????????????????? | | ??????????????????????????????????????????? | | ??????????????????????????????????????????? | | | +----------------------------------------------------+ Best States ------------- Heat Dissipation 53 Energy Generation 23 Energy Capacity 300 Matter Stores 500 Matter Capacity 500 Sight Range 16 Terrain Scan Density 10 Evasion (%) 55 Targeting Accuracy 5 Melee Accuracy 5 Recoil Reduction 2 Offensive Hacking 10 Item Schematics ----------------- None Robot Schematics ------------------ None Fabricated ------------ Nothing Repaired ---------- Nothing Alien Tech Used ----------------- None Achievements -------------- None Challenges ------------ None Game ------ Seed SuperquantumNodeExtractor Manual? 0 Play Time 00:30:01 Cumulative 55.3 hours Start 2025.07.16 @ 19:03:22 End 2025.07.16 @ 21:58:06 Sessions 3 Manual Loads 0 Difficulty Rogue Special Mode None Game No. 241 Rogue 241 Adventurer 0 Explorer 0 Win Type - Total 0 Types 0/0/0/0/0/0/0/0/0/0 Lore% 37 Gallery% 29 Achievement% 24 Wizard Run 0 Options --------- Layout 2 ASCII 0 Keyboard 0 Movement Mouse Keybinds 0 Fullscreen 1 Font 24/Smallcaps Map View 50x44 Zoom Use 0% Tactical HUD 0 Map Filters NONE Filters NONE Steam 1 RUN: b2bab3c6-7161-4577-95be-2d6a750fc975